fUSD/lending_fUSD_20250105
["ID","MTS","AMOUNT","RATE_DAILY","PERIOD"]
[347762038,1736095849118,-500.0,9.041e-05,2]
[347762039,1736095849128,-500.0,9.041e-05,2]
[347762040,1736095849137,-500.0,9.041e-05,2]
[347762041,1736095849147,-500.0,9.041e-05,2]
[347762042,1736095849157,-500.0,9.041e-05,2]
[347762043,1736095849166,-500.0,9.041e-05,2]
[347762044,1736095849175,-500.0,9.041e-05,2]
[347762045,1736095849185,-568.18,9.041e-05,2]
[347762046,1736095849195,-160.5,9.041e-05,2]
[347762047,1736095849205,-500.0,9.041e-05,2]
[347762048,1736095849215,-500.0,9.041e-05,2]
[347762049,1736095849226,-500.0,9.041e-05,2]
[347762050,1736095849235,-1727.67,9.041e-05,2]
[347762051,1736095849245,-779.3,9.041e-05,2]
[347762052,1736095849256,-607.64,9.041e-05,2]
[347762053,1736095849266,-500.0,9.041e-05,2]
[347762054,1736095849277,-500.0,9.041e-05,2]
[347762055,1736095849287,-500.0,9.041e-05,2]
[347762056,1736095849297,-500.0,9.041e-05,2]
[347762057,1736095849307,-500.0,9.041e-05,2]
[347762058,1736095849316,-782.01,9.041e-05,2]
[347762059,1736095849326,-500.0,9.041e-05,2]
[347762060,1736095849336,-1567.9,9.041e-05,2]
[347762061,1736095849346,-611.96,9.041e-05,2]
[347762062,1736095849355,-500.0,9.041e-05,2]
[347762063,1736095849365,-565.0,9.041e-05,2]
[347762064,1736095849375,-559.82,9.041e-05,2]
[347762065,1736095849384,-500.0,9.041e-05,2]
[347762066,1736095849394,-500.0,9.041e-05,2]
[347762067,1736095849404,-550.86,9.041e-05,2]
[347762068,1736095849413,-635.76,9.041e-05,2]
[347762069,1736095849423,-500.0,9.041e-05,2]
[347762070,1736095849433,-500.0,9.041e-05,2]
[347762071,1736095849443,-500.0,9.041e-05,2]
[347762072,1736095849453,-500.0,9.041e-05,2]
[347762073,1736095849463,-500.0,9.041e-05,2]
[347762074,1736095849473,-500.0,9.041e-05,2]
[347762075,1736095849483,-500.0,9.041e-05,2]
[347762076,1736095849492,-500.0,9.041e-05,2]
[347762077,1736095849502,-585.82,9.041e-05,2]
[347762078,1736095849511,-1088.08,9.041e-05,2]
[347762079,1736095849521,-500.0,9.041e-05,2]
[347762080,1736095849531,-500.0,9.041e-05,2]
[347762081,1736095849540,-500.0,9.041e-05,2]
[347762082,1736095849550,-500.0,9.041e-05,2]
[347762083,1736095849560,-500.0,9.041e-05,2]
[347762084,1736095849569,-500.0,9.041e-05,2]
[347762085,1736095849579,-1279.95,9.041e-05,2]
[347762086,1736095849589,-500.0,9.041e-05,2]
[347762087,1736095849599,-1226.62,9.041e-05,2]
[347762088,1736095849609,-500.0,9.041e-05,2]
[347762089,1736095849618,-475.54514682,9.041e-05,2]
[347762090,1736095849628,-500.0,9.041e-05,2]
[347762091,1736095849638,-500.0,9.041e-05,2]
[347762092,1736095849649,-643.04,9.041e-05,2]
[347762093,1736095849659,-876.2,9.041e-05,2]
[347762094,1736095849670,-500.0,9.041e-05,2]
[347762095,1736095849679,-500.0,9.041e-05,2]
[347762096,1736095849689,-500.0,9.041e-05,2]
[347762097,1736095849698,-500.0,9.041e-05,2]
[347762098,1736095849707,-500.0,9.041e-05,2]
[347762099,1736095849717,-500.0,9.041e-05,2]
[347762100,1736095849727,-1553.97,9.041e-05,2]
[347762101,1736095849736,-622.29,9.041e-05,2]
[347762102,1736095849746,-591.47,9.041e-05,2]
[347762103,1736095849758,-500.0,9.041e-05,2]
[347762104,1736095849767,-581.74,9.041e-05,2]
[347762105,1736095849776,-613.09,9.041e-05,2]
[347762106,1736095849787,-495.81721314,9.041e-05,2]
[347762107,1736095849797,-565.07,9.041e-05,2]
[347762108,1736095849809,-893.15,9.041e-05,2]
[347762109,1736095849818,-500.0,9.041e-05,2]
[347762110,1736095849828,-500.0,9.041e-05,2]
[347762111,1736095849837,-500.0,9.041e-05,2]
[347762112,1736095849848,-500.0,9.041e-05,2]
[347762113,1736095849857,-4529.45,9.041e-05,2]
[347762114,1736095849866,-1847.31,9.041e-05,2]
[347762115,1736095849875,-1003.38,9.041e-05,2]
[347762116,1736095849887,-1602.72,9.041e-05,2]
[347762117,1736095849896,-951.44,9.041e-05,2]
[347762118,1736095849904,-500.0,9.041e-05,2]
[347762119,1736095849913,-500.0,9.041e-05,2]
[347762120,1736095849923,-962.87,9.041e-05,2]
[347762121,1736095849932,-500.0,9.041e-05,2]
[347762122,1736095849941,-500.0,9.041e-05,2]
[347762123,1736095849950,-500.0,9.041e-05,2]
[347762124,1736095849960,-500.0,9.041e-05,2]
[347762125,1736095849970,-500.0,9.041e-05,2]
[347762126,1736095849979,-729.82,9.041e-05,2]
[347762127,1736095849988,-500.0,9.041e-05,2]
[347762128,1736095849998,-500.0,9.041e-05,2]
[347762129,1736095850008,-404.01868454,9.041e-05,2]
[347762130,1736095850017,-497.9355416,9.041e-05,2]
[347762131,1736095850028,-540.7,9.041e-05,2]
[347762132,1736095850038,-500.0,9.041e-05,2]
[347762133,1736095850047,-500.0,9.041e-05,2]
[347762134,1736095850057,-500.0,9.041e-05,2]
[347762135,1736095850067,-500.0,9.041e-05,2]
[347762136,1736095850077,-500.0,9.041e-05,2]
[347762137,1736095850087,-500.0,9.041e-05,2]
[347762138,1736095850096,-500.0,9.041e-05,2]
[347762139,1736095850106,-2757.49,9.041e-05,2]
[347762140,1736095850116,-611.9,9.041e-05,2]
[347762141,1736095850127,-500.0,9.041e-05,2]
[347762142,1736095850138,-941.3,9.041e-05,2]
[347762143,1736095850149,-500.0,9.041e-05,2]
[347762144,1736095850160,-500.0,9.041e-05,2]
[347762145,1736095850170,-500.0,9.041e-05,2]
[347762146,1736095850180,-500.0,9.041e-05,2]
[347762147,1736095850190,-500.0,9.041e-05,2]
[347762148,1736095850202,-500.0,9.041e-05,2]
[347762149,1736095850212,-1398.91,9.041e-05,2]
[347762150,1736095850223,-500.0,9.041e-05,2]
[347762151,1736095850233,-500.0,9.041e-05,2]
[347762152,1736095850243,-816.85,9.041e-05,2]
[347762153,1736095850252,-500.0,9.041e-05,2]
[347762154,1736095850262,-1869.6,9.041e-05,2]
[347762155,1736095850271,-500.0,9.041e-05,2]
[347762156,1736095850281,-1890.04,9.041e-05,2]
[347762157,1736095850291,-500.0,9.041e-05,2]
[347762158,1736095850300,-1724.92,9.041e-05,2]
[347762159,1736095850310,-500.0,9.041e-05,2]
[347762160,1736095850321,-500.0,9.041e-05,2]
[347762161,1736095850331,-500.0,9.041e-05,2]
[347762162,1736095850341,-958.63,9.041e-05,2]
[347762163,1736095850351,-500.0,9.041e-05,2]
[347762164,1736095850362,-2593.99,9.041e-05,2]
[347762165,1736095850372,-500.0,9.041e-05,2]
[347762166,1736095850382,-500.0,9.041e-05,2]
[347762167,1736095850391,-3988.32,9.041e-05,2]
[347762168,1736095850400,-713.17,9.041e-05,2]
[347762169,1736095850410,-555.29,9.041e-05,2]
[347762170,1736095850419,-500.0,9.041e-05,2]
[347762171,1736095850428,-2839.12,9.041e-05,2]
[347762172,1736095850437,-589.98,9.041e-05,2]
[347762173,1736095850448,-4987.87,9.041e-05,2]
[347762174,1736095850458,-1013.43,9.041e-05,2]
[347762175,1736095850469,-707.78,9.041e-05,2]
[347762176,1736095850479,-500.0,9.041e-05,2]
[347762177,1736095850488,-3292.79,9.041e-05,2]
[347762178,1736095850497,-500.0,9.041e-05,2]
[347762179,1736095850507,-973.9,9.041e-05,2]
[347762180,1736095850517,-500.0,9.041e-05,2]
[347762181,1736095850526,-1219.44,9.041e-05,2]
[347762182,1736095850538,-500.0,9.041e-05,2]
[347762183,1736095850548,-2047.69,9.041e-05,2]
[347762184,1736095850558,-950.22,9.041e-05,2]
[347762185,1736095850568,-841.68,9.041e-05,2]
[347762186,1736095850577,-1957.92,9.041e-05,2]
[347762187,1736095850588,-1161.3,9.041e-05,2]
[347762188,1736095850598,-500.0,9.041e-05,2]
[347762189,1736095850608,-500.0,9.041e-05,2]
[347762190,1736095850619,-1300.0,9.072e-05,2]
[347762191,1736095850629,-500.0,9.072e-05,2]
[347762192,1736095850639,-1000.0,9.247e-05,2]
[347762193,1736095850648,-500.0,9.311e-05,2]
[347762194,1736095850657,-1856.37,9.311e-05,2]
[347762195,1736095850667,-500.0,9.311e-05,2]
[347762196,1736095850677,-1176.54,9.311e-05,2]
[347762197,1736095850687,-530.44,9.311e-05,2]
[347762198,1736095850696,-2814.45,9.311e-05,2]
[347762199,1736095850706,-500.0,9.311e-05,2]
[347762200,1736095850715,-769.38,9.311e-05,2]
[347762201,1736095850725,-500.0,9.311e-05,2]
[347762202,1736095850735,-675.21,9.311e-05,2]
[347762203,1736095850745,-1561.87,9.311e-05,2]
[347762204,1736095850754,-500.0,9.311e-05,2]
[347762205,1736095850764,-1751.39,9.311e-05,2]
[347762206,1736095850774,-576.37,9.311e-05,2]
[347762207,1736095850784,-711.82,9.312e-05,2]
[347762208,1736095850794,-777.32,9.312e-05,2]
[347762209,1736095850805,-584.27,9.312e-05,2]
[347762210,1736095850815,-1362.64,9.312e-05,2]
[347762211,1736095850824,-933.23,9.312e-05,2]
[347762212,1736095850834,-798.0,9.312e-05,2]
[347762213,1736095850844,-500.0,9.312e-05,2]
[347762214,1736095850855,-500.0,9.312e-05,2]
[347762215,1736095850865,-1406.53,9.312e-05,2]
[347762216,1736095850874,-500.0,9.312e-05,2]
[347762217,1736095850886,-500.0,9.312e-05,2]
[347762218,1736095850896,-500.0,9.312e-05,2]
[347762219,1736095850906,-500.0,9.312e-05,2]
[347762220,1736095850915,-2482.55,9.312e-05,2]
[347762221,1736095850925,-500.0,9.312e-05,2]
[347762222,1736095850935,-2577.14,9.312e-05,2]
[347762223,1736095850946,-992.6,9.312e-05,2]
[347762224,1736095850957,-500.0,9.312e-05,2]
[347762225,1736095850967,-1643.78,9.312e-05,2]
[347762226,1736095850978,-500.0,9.312e-05,2]
[347762227,1736095850988,-4470.01,9.312e-05,2]
[347762228,1736095850998,-1552.7,9.312e-05,2]
[347762229,1736095851008,-500.0,9.312e-05,2]
[347762230,1736095851018,-645.32,9.312e-05,2]
[347762231,1736095851027,-500.0,9.312e-05,2]
[347762232,1736095851037,-800.4,9.312e-05,2]
[347762233,1736095851047,-1519.25,9.312e-05,2]
[347762234,1736095851058,-501.13,9.312e-05,2]
[347762235,1736095851069,-500.0,9.312e-05,2]
[347762236,1736095851079,-500.0,9.312e-05,2]
[347762237,1736095851089,-500.0,9.312e-05,2]
[347762238,1736095851099,-1316.83,9.312e-05,2]
[347762239,1736095851110,-1065.02017,9.312e-05,2]
[347762240,1736095851121,-500.0,9.312e-05,2]
[347762241,1736095851132,-2870.07,9.312e-05,2]
[347762242,1736095851143,-500.0,9.312e-05,2]
[347762243,1736095851154,-2582.52,9.312e-05,2]
[347762244,1736095851165,-500.0,9.312e-05,2]
[347762245,1736095851176,-885.235852,9.312e-05,2]
[347762246,1736095851186,-1296.0,9.312e-05,2]
[347762247,1736095851196,-500.0,9.312e-05,2]
[347762248,1736095851208,-1263.86,9.312e-05,2]
[347762249,1736095851219,-559.66,9.312e-05,2]
[347762250,1736095851229,-1451.88,9.312e-05,2]
[347762251,1736095851240,-500.0,9.312e-05,2]
[347762252,1736095851249,-500.0,9.312e-05,2]
[347762253,1736095851260,-662.17,9.312e-05,2]
[347762254,1736095851270,-500.0,9.312e-05,2]
[347762255,1736095851281,-500.0,9.312e-05,2]
[347762256,1736095851292,-1117.81,9.312e-05,2]
[347762257,1736095851303,-564.52,9.312e-05,2]
[347762258,1736095851314,-500.0,9.312e-05,2]
[347762259,1736095851324,-500.0,9.312e-05,2]
[347762260,1736095851335,-500.0,9.312e-05,2]
[347762261,1736095851347,-500.0,9.312e-05,2]
[347762262,1736095851356,-883.45,9.312e-05,2]
[347762263,1736095851366,-500.0,9.312e-05,2]
[347762264,1736095851376,-500.0,9.312e-05,2]
[347762265,1736095851386,-500.0,9.312e-05,2]
[347762266,1736095851396,-500.0,9.312e-05,2]
[347762267,1736095851406,-2939.35,9.312e-05,2]
[347762268,1736095851416,-951.44,9.312e-05,2]
[347762269,1736095851425,-500.0,9.312e-05,2]
[347762270,1736095851436,-500.0,9.312e-05,2]
[347762271,1736095851447,-500.0,9.312e-05,2]
[347762272,1736095851457,-3218.91,9.313e-05,2]
[347762273,1736095851466,-1847.93,9.313e-05,2]
[347762274,1736095851478,-3406.35,9.313e-05,2]
[347762275,1736095851488,-548.05,9.313e-05,2]
[347762276,1736095851498,-3997.2,9.313e-05,2]
[347762277,1736095851509,-500.0,9.313e-05,2]
[347762278,1736095851520,-697.66,9.313e-05,2]
[347762279,1736095851530,-500.0,9.314e-05,2]
[347762280,1736095851540,-500.0,9.314e-05,2]
[347762281,1736095851550,-500.0,9.314e-05,2]
[347762282,1736095851560,-542.45,9.314e-05,2]
[347762283,1736095851572,-500.0,9.314e-05,2]
[347762284,1736095851583,-500.0,9.314e-05,2]
[347762285,1736095851593,-509.74,9.314e-05,2]
[347762286,1736095851603,-500.0,9.314e-05,2]
[347762287,1736095851614,-500.0,9.314e-05,2]
[347762288,1736095851624,-620.99,9.314e-05,2]
[347762289,1736095851634,-500.0,9.314e-05,2]
[347762290,1736095851644,-591.3,9.314e-05,2]
[347762291,1736095851654,-500.0,9.314e-05,2]
[347762292,1736095851664,-500.0,9.314e-05,2]
[347762293,1736095851674,-500.0,9.314e-05,2]
[347762294,1736095851684,-581.38,9.314e-05,2]
[347762295,1736095851694,-500.0,9.314e-05,2]
[347762296,1736095851704,-500.0,9.314e-05,2]
[347762297,1736095851714,-500.0,9.314e-05,2]
[347762298,1736095851723,-500.0,9.314e-05,2]
[347762299,1736095851733,-500.0,9.314e-05,2]
[347762300,1736095851743,-500.0,9.314e-05,2]
[347762301,1736095851752,-500.0,9.314e-05,2]
[347762302,1736095851763,-885.2,9.314e-05,2]
[347762303,1736095851773,-571.68,9.314e-05,2]
[347762304,1736095851782,-500.0,9.314e-05,2]
[347762305,1736095851792,-500.0,9.314e-05,2]
[347762306,1736095851803,-565.85,9.314e-05,2]
[347762307,1736095851814,-279.25516584,9.314e-05,2]
[347762308,1736095851823,-500.0,9.314e-05,2]
[347762309,1736095851833,-584.68,9.314e-05,2]
[347762310,1736095851843,-500.0,9.314e-05,2]
[347762311,1736095851853,-500.0,9.314e-05,2]
[347762312,1736095851863,-500.0,9.314e-05,2]
[347762313,1736095851873,-566.83,9.314e-05,2]
[347762314,1736095851883,-500.0,9.314e-05,2]
[347762315,1736095851894,-500.0,9.314e-05,2]
[347762316,1736095851903,-500.0,9.314e-05,2]
[347762317,1736095851913,-500.0,9.314e-05,2]
[347762318,1736095851923,-500.0,9.314e-05,2]
[347762319,1736095851933,-812.34,9.314e-05,2]
[347762320,1736095851944,-500.0,9.314e-05,2]
[347762321,1736095851954,-1847.31,9.314e-05,2]
[347762322,1736095851964,-516.84,9.314e-05,2]
[347762323,1736095851973,-500.0,9.314e-05,2]
[347762324,1736095851983,-716.19,9.314e-05,2]
[347762325,1736095851993,-500.0,9.314e-05,2]
[347762326,1736095852002,-500.0,9.314e-05,2]
[347762327,1736095852014,-671.8,9.314e-05,2]
[347762328,1736095852025,-500.0,9.314e-05,2]
[347762329,1736095852035,-500.0,9.314e-05,2]
[347762330,1736095852045,-731.37,9.314e-05,2]
[347762331,1736095852054,-689.75,9.314e-05,2]
[347762332,1736095852063,-500.0,9.314e-05,2]
[347762333,1736095852073,-500.0,9.314e-05,2]
[347762334,1736095852082,-500.0,9.314e-05,2]
[347762335,1736095852091,-500.0,9.314e-05,2]
[347762336,1736095852100,-500.0,9.314e-05,2]
[347762337,1736095852110,-733.8,9.314e-05,2]
[347762338,1736095852119,-530.73,9.314e-05,2]
[347762339,1736095852128,-570.3,9.314e-05,2]
[347762340,1736095852137,-555.81,9.314e-05,2]
[347762341,1736095852146,-500.0,9.314e-05,2]
[347762342,1736095852156,-500.0,9.314e-05,2]
[347762343,1736095852166,-687.33,9.314e-05,2]
[347762344,1736095852175,-940.82,9.314e-05,2]
[347762345,1736095852185,-551.91,9.314e-05,2]
[347762346,1736095852195,-635.28,9.314e-05,2]
[347762347,1736095852204,-500.0,9.314e-05,2]
[347762348,1736095852214,-1073.58,9.314e-05,2]
[347762349,1736095852224,-1082.22,9.314e-05,2]
[347762350,1736095852233,-548.37,9.314e-05,2]
[347762351,1736095852244,-500.0,9.314e-05,2]
[347762352,1736095852253,-1388.69,9.314e-05,2]
[347762353,1736095852264,-676.35,9.314e-05,2]
[347762354,1736095852274,-500.0,9.314e-05,2]
[347762355,1736095852284,-550.27,9.314e-05,2]
[347762356,1736095852295,-792.94,9.314e-05,2]
[347762357,1736095852306,-1265.21,9.314e-05,2]
[347762358,1736095852316,-1771.38,9.314e-05,2]
[347762359,1736095852326,-500.0,9.314e-05,2]
[347762360,1736095852336,-646.75,9.314e-05,2]
[347762361,1736095852346,-500.0,9.314e-05,2]
[347762362,1736095852357,-687.89,9.314e-05,2]
[347762363,1736095852368,-3830.35,9.314e-05,2]
[347762364,1736095852379,-500.0,9.314e-05,2]
[347762365,1736095852390,-583.19,9.314e-05,2]
[347762366,1736095852400,-500.0,9.314e-05,2]
[347762367,1736095852411,-950.22,9.314e-05,2]
[347762368,1736095852422,-1533.34,9.314e-05,2]
[347762369,1736095852432,-500.0,9.314e-05,2]
[347762370,1736095852444,-500.0,9.314e-05,2]
[347762371,1736095852455,-5195.87,9.314e-05,2]
[347762372,1736095852465,-2256.91,9.314e-05,2]
[347762373,1736095852476,-635.6,9.314e-05,2]
[347762374,1736095852486,-614.92,9.314e-05,2]
[347762375,1736095852496,-1194.12,9.315e-05,2]
[347762376,1736095852506,-500.0,9.315e-05,2]
[347762377,1736095852515,-500.0,9.315e-05,2]
[347762378,1736095852525,-500.0,9.315e-05,2]
[347762379,1736095852536,-500.0,9.315e-05,2]
[347762380,1736095852546,-515.27,9.315e-05,2]
[347762381,1736095852557,-500.0,9.315e-05,2]
[347762382,1736095852567,-500.0,9.315e-05,2]
[347762383,1736095852577,-500.0,9.315e-05,2]
[347762384,1736095852588,-500.0,9.315e-05,2]
[347762385,1736095852598,-898.06,9.315e-05,2]
[347762386,1736095852608,-500.0,9.315e-05,2]
[347762387,1736095852619,-500.0,9.315e-05,2]
[347762388,1736095852630,-500.0,9.315e-05,2]
[347762389,1736095852640,-872.3,9.315e-05,2]
[347762390,1736095852651,-500.0,9.315e-05,2]
[347762391,1736095852662,-500.0,9.315e-05,2]
[347762392,1736095852672,-907.22,9.315e-05,2]
[347762393,1736095852683,-500.0,9.315e-05,2]
[347762394,1736095852693,-500.0,9.315e-05,2]
[347762395,1736095852702,-1000.0,9.315e-05,2]
[347762396,1736095852712,-500.0,9.315e-05,2]
[347762397,1736095852722,-500.0,9.315e-05,2]
[347762398,1736095852732,-664.88,9.315e-05,2]
[347762399,1736095852742,-500.0,9.315e-05,2]
[347762400,1736095852752,-500.0,9.315e-05,2]
[347762401,1736095852762,-500.0,9.315e-05,2]
[347762402,1736095852772,-797.13,9.315e-05,2]
[347762403,1736095852990,-500.0,9.315e-05,2]
[347762404,1736095853031,-500.0,9.315e-05,2]
[347762405,1736095853042,-500.0,9.315e-05,2]
[347762406,1736095853052,-500.0,9.315e-05,2]
[347762407,1736095853063,-500.0,9.315e-05,2]
[347762408,1736095853072,-500.0,9.315e-05,2]
[347762409,1736095853082,-500.0,9.315e-05,2]
[347762410,1736095853092,-568.18,9.315e-05,2]
[347762411,1736095853101,-500.0,9.315e-05,2]
[347762412,1736095853111,-500.0,9.315e-05,2]
[347762413,1736095853119,-500.0,9.315e-05,2]
[347762414,1736095853129,-1727.67,9.315e-05,2]
[347762415,1736095853138,-779.3,9.315e-05,2]
[347762416,1736095853147,-607.64,9.315e-05,2]
[347762417,1736095853156,-500.0,9.315e-05,2]
[347762418,1736095853166,-500.0,9.315e-05,2]
[347762419,1736095853175,-500.0,9.315e-05,2]
[347762420,1736095853185,-500.0,9.315e-05,2]
[347762421,1736095853195,-500.0,9.315e-05,2]
[347762422,1736095853206,-782.01,9.315e-05,2]
[347762423,1736095853216,-500.0,9.315e-05,2]
[347762424,1736095853225,-1567.9,9.315e-05,2]
[347762425,1736095853236,-611.96,9.315e-05,2]
[347762426,1736095853245,-500.0,9.315e-05,2]
[347762427,1736095853255,-565.0,9.315e-05,2]
[347762428,1736095853265,-559.82,9.315e-05,2]
[347762429,1736095853275,-500.0,9.315e-05,2]
[347762430,1736095853284,-500.0,9.315e-05,2]
[347762431,1736095853294,-550.86,9.315e-05,2]
[347762432,1736095853304,-500.0,9.315e-05,2]
[347762433,1736095853314,-562.8,9.315e-05,2]
[347762434,1736095853323,-500.0,9.315e-05,2]
[347762435,1736095853332,-500.0,9.315e-05,2]
[347762436,1736095853342,-500.0,9.315e-05,2]
[347762437,1736095853351,-500.0,9.315e-05,2]
[347762438,1736095853361,-500.0,9.315e-05,2]
[347762439,1736095853371,-500.0,9.315e-05,2]
[347762440,1736095853381,-585.82,9.315e-05,2]
[347762441,1736095853392,-1088.08,9.315e-05,2]
[347762442,1736095853402,-500.0,9.315e-05,2]
[347762443,1736095853411,-500.0,9.315e-05,2]
[347762444,1736095853421,-500.0,9.315e-05,2]
[347762445,1736095853431,-447.47,9.315e-05,2]
[347762446,1736095853440,-253.47,9.315e-05,2]
[347762447,1736095853450,-500.0,9.315e-05,2]
[347762448,1736095853463,-1279.95,9.315e-05,2]
[347762449,1736095853473,-500.0,9.315e-05,2]
[347762450,1736095853483,-1226.62,9.315e-05,2]
[347762451,1736095853495,-500.0,9.315e-05,2]
[347762452,1736095853505,-500.0,9.315e-05,2]
[347762453,1736095853515,-500.0,9.315e-05,2]
[347762454,1736095853526,-643.04,9.315e-05,2]
[347762455,1736095853536,-876.2,9.315e-05,2]
[347762456,1736095853547,-500.0,9.315e-05,2]
[347762457,1736095853557,-500.0,9.315e-05,2]
[347762458,1736095853568,-500.0,9.315e-05,2]
[347762459,1736095853578,-500.0,9.315e-05,2]
[347762460,1736095853588,-500.0,9.315e-05,2]
[347762461,1736095853598,-500.0,9.315e-05,2]
[347762462,1736095853608,-1553.97,9.315e-05,2]
[347762463,1736095853618,-500.0,9.315e-05,2]
[347762464,1736095853627,-591.47,9.315e-05,2]
[347762465,1736095853637,-581.74,9.315e-05,2]
[347762466,1736095853647,-613.09,9.315e-05,2]
[347762467,1736095853657,-565.07,9.315e-05,2]
[347762468,1736095853667,-893.15,9.315e-05,2]
[347762469,1736095853677,-500.0,9.315e-05,2]
[347762470,1736095853687,-500.0,9.315e-05,2]
[347762471,1736095853696,-500.0,9.315e-05,2]
[347762472,1736095853706,-500.0,9.315e-05,2]
[347762473,1736095853715,-4529.45,9.315e-05,2]
[347762474,1736095853725,-1847.31,9.315e-05,2]
[347762475,1736095853734,-1003.38,9.315e-05,2]
[347762476,1736095853744,-1602.72,9.315e-05,2]
[347762477,1736095853753,-951.44,9.315e-05,2]
[347762478,1736095853764,-578.45975674,9.315e-05,2]
[347762479,1736095853773,-500.0,9.315e-05,2]
[347762480,1736095853783,-962.87,9.315e-05,2]
[347762481,1736095853792,-500.0,9.315e-05,2]
[347762482,1736095853803,-500.0,9.315e-05,2]
[347762483,1736095853816,-500.0,9.315e-05,2]
[347762484,1736095853826,-612.64,9.315e-05,2]
[347762485,1736095853836,-241.49,9.315e-05,2]
[347762486,1736095853847,-729.82,9.315e-05,2]
[347762487,1736095853857,-500.0,9.315e-05,2]
[347762488,1736095853867,-500.0,9.315e-05,2]
[347762489,1736095853877,-540.7,9.315e-05,2]
[347762490,1736095853888,-500.0,9.315e-05,2]
[347762491,1736095853898,-500.0,9.315e-05,2]
[347762492,1736095853908,-500.0,9.315e-05,2]
[347762493,1736095853918,-500.0,9.315e-05,2]
[347762494,1736095853928,-500.0,9.315e-05,2]
[347762495,1736095853939,-500.0,9.315e-05,2]
[347762496,1736095853949,-2757.49,9.315e-05,2]
[347762497,1736095853958,-611.9,9.315e-05,2]
[347762498,1736095853968,-500.0,9.315e-05,2]
[347762499,1736095853978,-941.3,9.315e-05,2]
[347762500,1736095853988,-500.0,9.315e-05,2]
[347762501,1736095853998,-500.0,9.315e-05,2]
[347762502,1736095854007,-500.0,9.315e-05,2]
[347762503,1736095854017,-500.0,9.315e-05,2]
[347762504,1736095854028,-500.0,9.315e-05,2]
[347762505,1736095854038,-500.0,9.315e-05,2]
[347762506,1736095854048,-500.0,9.315e-05,2]
[347762507,1736095854058,-1398.91,9.315e-05,2]
[347762508,1736095854067,-816.85,9.315e-05,2]
[347762509,1736095854077,-500.0,9.315e-05,2]
[347762510,1736095854086,-1869.6,9.315e-05,2]
[347762511,1736095854095,-500.0,9.315e-05,2]
[347762512,1736095854106,-1890.04,9.315e-05,2]
[347762513,1736095854116,-500.0,9.315e-05,2]
[347762514,1736095854125,-1724.92,9.315e-05,2]
[347762515,1736095854135,-500.0,9.315e-05,2]
[347762516,1736095854146,-500.0,9.315e-05,2]
[347762517,1736095854155,-634.58625739,9.315e-05,2]
[347762518,1736095854165,-958.63,9.315e-05,2]
[347762519,1736095854175,-500.0,9.315e-05,2]
[347762520,1736095854184,-2593.99,9.315e-05,2]
[347762521,1736095854194,-500.0,9.315e-05,2]
[347762522,1736095854203,-500.0,9.315e-05,2]
[347762523,1736095854213,-3988.32,9.315e-05,2]
[347762524,1736095854223,-713.17,9.315e-05,2]
[347762525,1736095854232,-555.29,9.315e-05,2]
[347762526,1736095854241,-500.0,9.315e-05,2]
[347762527,1736095854251,-589.98,9.315e-05,2]
[347762528,1736095854261,-2839.12,9.315e-05,2]
[347762529,1736095854270,-4987.87,9.315e-05,2]
[347762530,1736095854280,-1013.43,9.315e-05,2]
[347762531,1736095854290,-707.78,9.315e-05,2]
[347762532,1736095854299,-3292.79,9.315e-05,2]
[347762533,1736095854309,-500.0,9.315e-05,2]
[347762534,1736095854319,-973.9,9.315e-05,2]
[347762535,1736095854328,-500.0,9.315e-05,2]
[347762536,1736095854337,-1219.44,9.315e-05,2]
[347762537,1736095854347,-500.0,9.315e-05,2]